bitfinex/quotes_ETHUSD_20250611
["timestamp","ask_amount","ask_price","bid_price","bid_amount"]
[1749652878656,0.77739186,2828.3,2827.5,4.365]
[1749652878856,0.1768,2827.5,2827.0,6.60774209]
[1749652879157,1.7572,2828.2,2827.0,0.01769]
[1749652879359,0.43041744,2828.3,2827.0,0.01769]
[1749652879360,1.2072,2828.1,2827.0,0.01769]
[1749652879560,0.1768,2827.2,2827.0,0.01769]
[1749652879783,1.2072,2828.1,2827.0,0.01769]
[1749652879784,1.2072,2828.1,2827.0,0.31297921]
[1749652880098,0.1768,2827.1,2827.0,0.31297921]
[1749652880510,0.1768,2827.1,2827.0,0.01769]
[1749652880713,0.1768,2827.1,2827.0,3.55500871]
[1749652881010,0.1768,2827.1,2827.0,0.01769]
[1749652881671,0.1768,2827.3,2827.0,3.55500871]
[1749652881872,0.1768,2827.3,2827.0,0.01769]
[1749652882080,1.2072,2828.1,2827.2,10.0]
[1749652882409,0.1768,2827.5,2827.2,10.0]
[1749652882609,1.2072,2828.1,2827.2,10.0]
[1749652882908,0.1768,2827.5,2827.4,3.53681827]
[1749652883129,0.1768,2827.5,2827.2,10.0]
[1749652883788,0.1768,2827.5,2827.2,13.53697238]
[1749652883993,0.1768,2827.5,2827.2,10.0]
[1749652884198,0.1768,2827.2,2827.0,0.01769]
[1749652884398,1.2583,2828.1,2827.0,0.01769]
[1749652884601,1.2583,2827.9,2827.0,0.01769]
[1749652885381,1.7793,2827.7,2827.0,0.01769]
[1749652885605,1.2293,2827.6,2827.0,0.01769]
[1749652886383,1.2063,2828.1,2827.1,10.55]
[1749652886580,0.1768,2827.7,2827.3,13.53688473]
[1749652886781,0.1768,2827.7,2827.2,0.1768]
[1749652887011,0.1768,2827.7,2827.3,10.0]
[1749652887189,0.1768,2827.7,2827.2,10.1768]
[1749652887393,1.2063,2828.1,2827.0,0.01769]
[1749652887394,0.1768,2827.2,2827.0,0.01769]
[1749652887612,0.1768,2827.2,2827.0,10.01769]
[1749652887812,1.2063,2828.1,2827.2,3.53706847]
[1749652888015,0.1768,2827.5,2827.4,10.0]
[1749652888225,0.1768,2827.7,2827.4,13.53681827]
[1749652888392,0.1768,2827.7,2827.4,0.55]
[1749652888597,0.1768,2828.0,2827.6,0.55]
[1749652888785,0.176,2828.2,2827.6,0.7268]
[1749652888988,0.25,2828.3,2827.5,4.337]
[1749652889185,0.25,2828.3,2827.7,10.0]
[1749652889385,0.25,2828.3,2828.1,13.53581954]
[1749652889615,0.25,2828.3,2828.2,14.08581783]
[1749652889828,0.25,2828.3,2828.2,15.46151783]
[1749652890715,0.25,2828.3,2828.2,25.65647783]
[1749652890913,0.25,2828.3,2828.2,30.35647783]
[1749652891433,0.25,2828.3,2828.2,26.14514083]
[1749652891654,0.25,2828.3,2828.2,23.81403483]
[1749652892244,0.04,2829.9,2829.2,10.0]
[1749652892535,0.04,2829.9,2829.3,2.03996266]
[1749652892695,0.04,2829.9,2829.3,3.534366]
[1749652892896,0.04,2829.9,2829.2,0.55]
[1749652893251,0.04,2829.9,2829.0,2.03996266]
[1749652893404,0.04,2829.9,2828.8,0.0249]
[1749652893405,0.04,2829.9,2829.2,10.0]
[1749652893607,0.04,2829.9,2829.6,3.53396292]
[1749652893928,0.04,2829.9,2829.7,17.8599212]
[1749652894166,0.04,2829.9,2829.7,15.3991]
[1749652894429,0.04,2829.9,2829.8,15.47181864]
[1749652894722,0.04,2829.9,2829.8,21.8417813]
[1749652894894,0.04,2829.9,2829.8,19.80181864]
[1749652895102,0.04,2829.9,2829.8,21.8417813]
[1749652895909,0.04,2829.9,2829.8,21.8377813]
[1749652896399,0.04,2829.9,2829.8,19.79581864]
[1749652896607,0.04,2829.9,2829.5,8.23416188]
[1749652896608,0.04,2829.9,2829.6,10.0]
[1749652896896,0.04,2829.9,2829.6,14.61501788]
[1749652897107,0.04,2829.9,2829.8,10.0]
[1749652897335,0.04,2829.9,2829.8,3.53381864]
[1749652897620,0.04,2829.9,2829.8,10.0]
[1749652897919,0.04,2829.9,2829.6,0.29501788]
[1749652898224,0.04,2829.9,2829.6,10.29501788]
[1749652898521,0.04,2829.9,2829.6,10.0]
[1749652899637,0.04,2829.9,2829.0,2.03996266]
[1749652899638,0.04,2829.9,2829.0,10.0]
[1749652899847,0.04,2829.9,2829.2,13.53448471]
[1749652900140,0.04,2829.9,2829.5,10.0]
[1749652900444,0.04,2829.9,2829.4,10.0]
[1749652900631,0.04,2829.9,2829.4,4.312]
[1749652900847,0.04,2829.9,2829.6,13.53406463]
[1749652901342,0.04,2829.9,2829.8,13.53381864]
[1749652901496,0.04,2829.9,2829.8,14.08381864]
[1749652901717,0.04,2829.9,2829.8,18.40481864]
[1749652901920,0.04,2829.9,2829.8,14.871]
[1749652902121,0.04,2829.9,2829.8,18.57681864]
[1749652902564,0.04,2829.9,2829.8,14.493]
[1749652902721,0.04,2829.9,2829.8,10.0]
[1749652903172,0.04,2829.9,2829.5,14.313]
[1749652903470,0.176,2829.7,2829.4,10.0]
[1749652903669,0.176,2829.7,2829.1,0.176]
[1749652903875,1.2755,2829.8,2828.7,4.60819568]
[1749652904160,0.176,2829.3,2829.0,4.31]
[1749652904331,0.176,2829.3,2828.8,3.53505831]
[1749652904518,0.176,2829.3,2828.7,1.2491]
[1749652904519,1.2755,2829.8,2828.7,0.176]
[1749652904722,0.04,2829.9,2828.5,3.53541121]
[1749652904723,0.176,2828.9,2828.5,3.53541121]
[1749652904921,0.176,2828.9,2828.3,0.176]
[1749652905167,0.176,2828.5,2828.3,4.305]
[1749652905370,0.176,2828.5,2828.2,4.304]
[1749652905671,0.176,2828.5,2828.3,10.0]
[1749652905871,1.2692,2829.0,2827.7,2.54307735]
[1749652906071,0.176,2828.2,2827.8,0.29520567]
[1749652906367,0.176,2828.5,2828.0,0.1768]
[1749652906522,0.176,2828.5,2828.0,10.1768]
[1749652906732,0.176,2828.5,2828.0,0.1768]
[1749652906942,1.2692,2829.0,2827.9,4.307]
[1749652907175,0.1768,2828.1,2828.0,13.53604598]
[1749652907381,1.2692,2829.0,2828.1,10.0]
[1749652907534,0.176,2828.5,2828.2,4.302]
[1749652908482,1.2692,2829.0,2828.2,4.302]
[1749652909293,0.176,2828.5,2828.2,4.302]
[1749652909439,1.2692,2829.0,2828.0,10.0]
[1749652909641,0.176,2828.2,2828.1,14.293]
[1749652910083,0.176,2828.2,2828.1,10.0]
[1749652910290,1.3699,2828.2,2828.1,10.0]
[1749652910572,0.04,2829.9,2828.2,10.0]
[1749652910573,1.2934,2829.1,2828.2,10.0]
[1749652910772,1.2934,2829.5,2828.5,10.55]
[1749652910981,0.176,2829.4,2828.9,0.55]
[1749652911182,1.3334,2829.9,2828.6,0.55]
[1749652911334,1.3334,2829.9,2828.4,0.176]
[1749652911335,0.176,2828.9,2828.4,0.176]
[1749652911665,1.2934,2829.0,2828.8,3.53505625]
[1749652911867,1.2934,2829.8,2828.6,10.0]
[1749652912197,1.2934,2829.8,2829.1,10.0]
[1749652912198,0.176,2829.2,2829.1,10.0]
[1749652912648,0.176,2829.2,2829.1,13.53469301]
[1749652912853,0.04,2829.9,2829.8,3.53381864]
[1749652913035,0.04,2829.9,2829.8,13.53381864]
[1749652913483,0.04,2829.9,2829.8,10.0]
[1749652913990,0.04,2829.9,2829.8,13.53381864]
[1749652914357,0.04,2829.9,2829.8,17.81681864]
[1749652915087,0.04,2829.9,2829.8,18.36681864]
[1749652915239,0.04,2829.9,2829.8,18.54281864]
[1749652915444,0.04,2829.9,2829.8,19.92781864]
[1749652915645,0.04,2829.9,2829.8,19.20081864]
[1749652915879,0.04,2829.9,2829.8,10.0]
[1749652916180,0.216,2829.9,2829.8,10.0]
[1749652916365,0.216,2829.9,2829.4,0.176]
[1749652916567,0.216,2829.9,2829.6,10.0]
[1749652916765,0.216,2829.9,2829.6,3.53405618]
[1749652916970,0.216,2829.9,2829.7,10.0]
[1749652917292,0.04,2829.9,2829.8,14.08381864]
[1749652917652,1.2455,2830.9,2830.2,3.53331691]
[1749652917886,1.2455,2830.9,2830.2,7.80624116]
[1749652918282,1.2455,2830.9,2830.2,4.273]
[1749652918486,1.2455,2830.9,2830.2,7.80631374]
[1749652918874,1.2455,2830.9,2830.2,4.273]
[1749652919282,1.2455,2830.9,2830.2,7.80624419]
[1749652919458,1.2455,2830.9,2830.2,4.273]
[1749652919869,1.2455,2830.9,2830.2,7.80630044]
[1749652920191,0.04,2830.9,2830.6,3.53271269]
[1749652920401,0.04,2830.9,2830.7,4.261]
[1749652921503,0.04,2830.9,2830.8,10.0]
[1749652921655,0.04,2830.9,2830.8,13.53257029]
[1749652922458,0.04,2830.9,2830.8,14.08257029]
[1749652922861,0.04,2830.9,2830.8,13.53257029]
[1749652923057,0.04,2830.9,2830.6,12.03996266]
[1749652923263,0.04,2830.9,2830.5,2.03996266]
[1749652923457,0.04,2830.9,2830.2,2.03996266]
[1749652923768,0.04,2830.9,2830.0,2.105]
[1749652923972,0.04,2830.9,2830.0,6.351]
[1749652924302,0.04,2830.9,2830.1,3.53343422]
[1749652924502,0.04,2830.9,2830.0,2.105]
[1749652925021,0.04,2830.9,2830.0,12.105]
[1749652926179,0.04,2830.9,2830.0,15.63845549]
[1749652926412,0.04,2830.9,2830.1,3.53342083]
[1749652926710,0.04,2830.9,2830.1,3.53343612]
[1749652926873,0.04,2830.9,2830.4,3.53305765]
[1749652927069,0.04,2830.9,2830.5,3.5328982]
[1749652927269,0.176,2830.8,2830.5,3.5328982]
[1749652927477,0.176,2830.8,2830.6,10.0]
[1749652927710,0.176,2830.8,2830.7,13.53269509]
[1749652928006,0.04,2830.9,2830.7,13.53269509]
[1749652928007,0.04,2830.9,2830.8,14.08257029]
[1749652928208,0.04,2830.9,2830.8,20.36553295]
[1749652928375,0.04,2830.9,2830.8,16.12253295]
[1749652928575,0.04,2830.9,2830.8,21.71553295]
[1749652928784,0.04,2830.9,2830.8,16.12253295]
[1749652928987,0.04,2830.9,2830.8,19.67557029]
[1749652929172,0.04,2830.9,2830.8,21.71553295]
[1749652929382,0.04,2830.9,2830.7,4.0826916]
[1749652929700,0.04,2830.9,2830.6,10.0]
[1749652929901,1.2199,2831.2,2831.0,2.065]
[1749652930105,1.2199,2831.1,2829.7,1.349]
[1749652930285,1.2199,2830.9,2829.7,1.349]
[1749652930480,1.2199,2830.7,2829.7,1.349]
[1749652930680,1.2199,2830.7,2829.2,2.03996266]
[1749652931016,1.1895,2830.2,2828.9,2.03996266]
[1749652931215,1.1895,2829.8,2828.3,4.239]
[1749652931390,1.1895,2829.8,2828.7,3.53519284]
[1749652931578,1.1895,2829.8,2829.3,10.0]
[1749652931799,1.1895,2829.8,2828.7,6.27896266]
[1749652932135,1.1895,2829.8,2828.9,3.53489425]
[1749652932336,1.1895,2829.8,2829.1,0.04]
[1749652933911,0.35093598,2830.8,2829.1,0.04]
[1749652933912,1.1923,2830.2,2829.2,0.55]
[1749652934313,1.1923,2830.2,2829.4,10.0]
[1749652934516,1.1923,2830.2,2829.2,4.08449024]
[1749652934517,1.1923,2830.2,2829.3,14.233]
[1749652934703,1.1923,2830.2,2829.3,4.231]
[1749652934907,1.1923,2830.2,2829.2,4.23]
[1749652935113,1.1923,2830.2,2829.3,10.0]
[1749652935844,1.1923,2830.2,2829.1,0.04]
[1749652936016,1.1923,2830.2,2829.2,4.227]
[1749652937635,1.1923,2830.2,2829.3,10.0]
[1749652938035,0.176,2829.6,2829.3,10.0]
[1749652938271,0.176,2829.6,2829.2,14.217]
[1749652938491,1.2424,2830.6,2830.0,3.53352434]
[1749652938789,1.1725,2831.0,2830.2,10.0]
[1749652939067,0.176,2830.6,2830.4,10.0]
[1749652939769,0.176,2830.9,2830.6,10.0]
[1749652940071,1.1618,2831.8,2830.7,0.55]
[1749652940237,0.176,2831.2,2830.7,0.726]
[1749652940673,1.1618,2831.8,2830.6,2.03761511]
[1749652940836,0.176,2831.0,2830.6,12.03761511]
[1749652941036,0.176,2831.0,2830.7,4.218]
[1749652941244,0.176,2831.0,2830.8,10.0]
[1749652941768,0.176,2831.0,2830.6,4.218]
[1749652942069,0.176,2831.0,2830.7,10.0]
[1749652942246,0.176,2831.0,2830.5,0.176]
[1749652942445,0.176,2830.8,2830.7,10.0]
[1749652942838,0.176,2830.8,2830.4,2.03761511]
[1749652943038,0.176,2830.4,2830.2,4.217]
[1749652943483,1.1945,2831.0,2830.2,4.217]
[1749652943655,0.176,2830.5,2830.2,7.75025273]
[1749652943851,0.176,2830.5,2830.3,4.08311596]
[1749652944082,0.176,2830.8,2830.3,2.76361511]
[1749652944373,0.176,2830.8,2830.5,10.0]
[1749652944578,0.176,2830.8,2830.7,10.0]
[1749652944884,0.176,2830.8,2830.7,14.217]
[1749652945085,1.2303,2831.5,2830.8,10.0]
[1749652945241,0.176,2831.0,2830.8,13.53256326]
[1749652945436,0.176,2831.0,2830.8,10.0]
[1749652945768,0.176,2831.0,2830.8,12.03761511]
[1749652945935,0.176,2831.0,2830.8,10.0]
[1749652946141,0.176,2831.0,2830.7,2.03761511]
[1749652946337,0.176,2831.0,2830.8,10.0]
[1749652946761,1.2303,2831.5,2830.9,10.0]
[1749652946970,0.176,2831.5,2831.0,2.21361511]
[1749652947198,7.89637925,2831.8,2830.7,6.25461511]
[1749652947401,0.176,2830.8,2830.5,2.03761511]
[1749652947606,1.3616,2830.8,2830.3,5.57077987]
[1749652947757,0.04,2831.9,2830.3,2.03761511]
[1749652948145,0.176,2831.1,2830.6,3.70881386]
[1749652948403,0.176,2831.1,2830.8,10.0]
[1749652948966,0.176,2831.1,2830.8,11.0404]
[1749652949166,0.176,2831.1,2830.8,14.57290942]
[1749652949367,0.176,2831.2,2830.8,10.0]
[1749652949562,0.176,2831.0,2830.6,2.03761511]
[1749652949762,1.2345,2831.9,2830.3,3.76035021]
[1749652949763,0.176,2830.6,2830.4,2.03761511]
[1749652950005,0.176,2830.4,2830.2,2.03761511]
[1749652950162,0.176,2830.2,2830.0,4.216]
[1749652950373,1.2008,2830.5,2830.1,10.0]
[1749652950604,0.176,2830.3,2830.1,10.0]
[1749652950780,1.2147,2831.0,2830.2,10.55]
[1749652950978,0.176,2831.0,2830.6,0.55]
[1749652951179,0.176,2831.1,2830.8,10.0]
[1749652951934,0.176,2830.9,2830.8,10.0]
[1749652952520,1.2147,2831.4,2830.8,10.0]
[1749652952817,1.2147,2831.4,2830.7,4.216]
[1749652952818,0.176,2830.9,2830.7,4.216]
[1749652953105,1.2147,2831.4,2830.4,2.0400057]
[1749652953323,0.176,2830.5,2830.3,6.2560057]
[1749652953518,0.176,2830.4,2830.2,2.0400057]
[1749652953674,0.176,2830.2,2830.1,4.216]
[1749652953871,0.176,2830.2,2830.1,4.51096576]
[1749652954113,0.176,2830.3,2830.1,4.51096576]
[1749652954265,1.282,2831.2,2830.2,4.766]
[1749652954469,0.04,2831.9,2830.2,4.766]
[1749652954470,1.282,2831.8,2830.5,2.59128776]
[1749652954676,1.282,2831.8,2830.9,10.0]
[1749652954884,1.282,2831.8,2831.0,4.216]
[1749652955083,1.282,2831.8,2831.1,10.0]
[1749652955316,1.282,2831.8,2831.1,13.53218619]
[1749652955475,1.282,2831.8,2830.9,2.04128776]
[1749652955680,1.282,2831.8,2831.1,10.0]
[1749652955880,1.282,2831.8,2831.0,4.216]
[1749652955881,1.282,2831.8,2830.8,12.04128776]
[1749652956217,1.282,2831.8,2830.8,10.0]
[1749652956581,1.282,2831.8,2830.5,12.04128776]
[1749652956787,1.282,2831.8,2830.7,10.0]
[1749652957783,1.282,2831.8,2830.4,2.04128776]
[1749652958316,1.282,2831.8,2830.4,4.215]
[1749652958490,0.55,2831.5,2830.1,2.04128776]
[1749652958692,1.2309,2831.3,2830.2,4.215]
[1749652958907,1.2309,2831.3,2830.2,10.0]
[1749652960226,1.2309,2831.3,2830.2,13.53328918]
[1749652960422,1.2309,2831.3,2830.4,3.53305814]
[1749652960597,1.2309,2831.3,2830.6,10.0]
[1749652960787,1.2309,2831.3,2830.8,10.0]
[1749652960991,1.2309,2831.3,2831.0,10.0]
[1749652961196,1.1759,2831.7,2831.0,10.0]
[1749652961407,1.1759,2831.7,2831.2,3.53198842]
[1749652961652,0.04,2831.9,2831.4,13.53180434]
[1749652961787,0.04,2831.9,2831.5,2.04128776]
[1749652962233,0.04,2831.9,2831.1,2.04128776]
[1749652962393,1.2627,2831.8,2830.8,2.04128776]
[1749652962727,1.2627,2831.8,2830.6,14.215]
[1749652962728,1.2627,2831.8,2831.0,0.55]
[1749652962928,1.2627,2831.8,2831.3,10.0]
[1749652963324,1.2627,2831.8,2831.3,12.04128776]
[1749652963775,1.2627,2831.8,2831.3,2.04128776]
[1749652963921,0.04,2831.9,2831.3,2.04128776]
[1749652963922,0.04,2831.9,2831.6,10.0]
[1749652964282,0.04,2831.9,2831.8,2.04128776]
[1749652964579,0.04,2831.9,2831.8,5.57261059]
[1749652964783,0.04,2831.9,2831.8,16.12261059]
[1749652964927,0.04,2831.9,2831.8,14.25732283]
[1749652965124,0.04,2831.9,2831.8,15.29772283]
[1749652965325,0.04,2831.9,2831.8,43.21587383]
[1749652965638,0.04,2831.9,2831.8,43.68690611]
[1749652965836,0.216,2832.9,2832.8,3.53007624]
[1749652966066,0.216,2832.9,2832.8,12.03657233]
[1749652966367,1.2839,2832.8,2832.3,2.03657233]
[1749652966527,1.2839,2832.8,2831.8,6.25057233]
[1749652966979,0.216,2832.9,2832.1,5.56752109]
[1749652966980,0.04,2832.9,2832.1,5.56752109]
[1749652967164,0.04,2832.9,2832.5,10.0]
[1749652967477,0.04,2832.9,2832.5,2.03657233]
[1749652967628,0.04,2832.9,2832.7,10.0]
[1749652968073,0.04,2832.9,2832.8,14.08007624]
[1749652968282,0.04,2832.9,2832.8,19.52801724]
[1749652968481,0.04,2832.9,2832.8,20.64547624]
[1749652968988,0.04,2832.9,2832.8,16.11219083]
[1749652969128,0.04,2832.9,2832.8,17.74307624]
[1749652969328,0.04,2832.9,2832.8,26.17573597]
[1749652969640,0.04,2832.9,2832.8,27.48673597]
[1749652969932,0.04,2832.9,2832.8,42.65941397]
[1749652970135,0.04,2832.9,2832.8,32.38395197]
[1749652970329,0.04,2832.9,2832.8,31.35845397]
[1749652970547,0.04,2833.9,2833.3,0.55]
[1749652970749,0.04,2833.9,2833.7,13.5288825]
[1749652970952,0.04,2833.9,2833.8,18.29183054]
[1749652971185,0.04,2833.9,2833.8,16.074]
[1749652971384,0.04,2833.9,2833.8,19.60283054]
[1749652971736,0.04,2833.9,2833.8,10.55]
[1749652971968,0.04,2833.9,2833.8,19.60183054]
[1749652972197,0.04,2833.9,2833.8,32.50605754]
[1749652972480,0.04,2834.9,2834.6,3.52775876]
[1749652972637,0.04,2834.9,2834.7,14.212]
[1749652972832,0.04,2834.9,2834.8,14.212]
[1749652973436,0.04,2834.9,2834.8,10.0]
[1749652974355,0.04,2834.9,2834.8,14.07758572]
[1749652974543,0.04,2834.9,2834.8,21.96024545]
[1749652974760,0.04,2834.9,2834.8,18.43265973]
[1749652974959,0.04,2834.9,2834.8,21.96024545]
[1749652975130,0.04,2834.9,2834.8,21.41024545]
[1749652975483,0.04,2834.9,2834.8,21.96024545]
[1749652975665,0.04,2834.9,2834.8,34.39643345]
[1749652975851,0.04,2834.9,2834.8,39.91743345]
[1749652976431,0.04,2834.9,2834.8,34.39643345]
[1749652976671,0.04,2835.9,2835.6,3.52652728]
[1749652976837,0.04,2835.9,2835.8,10.0]
[1749652977032,0.04,2835.9,2835.8,18.28734177]
[1749652977650,0.04,2835.9,2835.3,4.56662992]
[1749652977836,0.04,2835.9,2835.4,14.211]
[1749652978035,0.04,2835.9,2835.4,10.0]
[1749652978254,0.04,2835.9,2835.7,7.88265973]
[1749652978850,0.04,2835.9,2835.8,4.21]
[1749652979381,0.04,2835.9,2835.8,18.28634177]
[1749652979547,0.04,2835.9,2835.8,21.9590015]
[1749652979754,0.04,2835.9,2835.8,19.04434177]
[1749652980070,0.04,2835.9,2835.8,19.59434177]
[1749652980288,0.04,2835.9,2835.8,27.4770015]
[1749652980775,0.04,2835.9,2835.8,14.07634177]
[1749652981069,0.04,2835.9,2835.8,19.04234177]
[1749652981839,0.04,2835.9,2835.8,13.52634177]
[1749652982063,0.04,2835.9,2835.8,19.04234177]
[1749652982270,0.04,2835.9,2835.8,14.07634177]
[1749652982716,0.04,2835.9,2835.8,10.0]
[1749652982869,0.04,2835.9,2835.8,21.4090015]
[1749652983311,0.04,2835.9,2835.8,10.0]
[1749652983618,0.04,2835.9,2835.8,19.04234177]
[1749652983775,0.04,2835.9,2835.3,1.0397]
[1749652983776,0.04,2835.9,2835.0,1.308]
[1749652984111,0.04,2835.9,2835.1,0.29444556]
[1749652984296,0.04,2835.9,2835.2,7.7340782]
[1749652984651,0.04,2835.9,2835.6,0.55]
[1749652984787,0.04,2835.9,2835.8,13.52634177]
[1749652985227,0.04,2835.9,2835.8,17.73334177]
[1749652985426,0.04,2835.9,2835.8,18.28334177]
[1749652985831,0.04,2835.9,2835.8,19.59134177]
[1749652986106,0.04,2835.9,2835.8,19.04134177]
[1749652986416,0.04,2835.9,2835.8,19.59134177]
[1749652986595,0.04,2835.9,2835.8,14.207]
[1749652986789,0.04,2835.9,2835.8,17.73334177]
[1749652987211,0.04,2835.9,2835.8,14.207]
[1749652987549,0.04,2835.9,2835.8,10.0]
[1749652987724,0.04,2835.9,2835.8,14.207]
[1749652987896,0.04,2835.9,2835.1,3.82161323]
[1749652988227,0.04,2835.9,2835.3,3.52689311]
[1749652988228,1.249,2835.8,2835.3,3.52689311]
[1749652988429,1.249,2835.8,2835.3,10.0]
[1749652988730,1.249,2835.8,2835.4,7.7338237]
[1749652988930,1.249,2835.8,2835.6,10.0]
[1749652989232,1.249,2835.8,2835.7,10.0]
[1749652989526,0.04,2835.9,2835.8,10.0]
[1749652989733,0.04,2835.9,2835.8,13.52634177]
[1749652990434,0.04,2835.9,2835.8,14.07634177]
[1749652990750,0.04,2836.9,2836.8,13.5250987]
[1749652990965,0.04,2836.9,2836.8,32.06922943]
[1749652991235,0.04,2836.9,2836.8,32.89286171]
[1749652991405,1.218,2838.4,2837.8,13.5238565]
[1749652991592,1.218,2838.4,2837.8,19.0378565]
[1749652991790,1.2085,2838.9,2837.8,23.94665973]
[1749652992119,1.2085,2838.9,2837.8,15.514]
[1749652992443,1.2085,2838.9,2837.8,19.5878565]
[1749652992733,1.2085,2838.9,2837.8,21.8676405]
[1749652993105,0.02838,2837.9,2837.8,19.5868565]
[1749652993306,0.02838,2837.9,2837.8,14.0738565]
[1749652993532,1.2085,2838.9,2837.8,19.5868565]
[1749652993732,0.73688,2838.9,2838.0,0.55]
[1749652993899,0.73688,2838.9,2838.0,4.07358975]
[1749652994096,0.73688,2838.9,2838.1,15.513]
[1749652994315,0.04,2839.9,2838.6,10.0]
[1749652994515,0.04,2839.9,2838.8,10.0]
[1749652994737,0.04,2839.9,2838.7,4.205]
[1749652994738,0.04,2839.9,2839.0,10.0]
[1749652994954,0.04,2839.9,2839.2,10.0]
[1749652995116,0.04,2839.9,2838.6,0.55]
[1749652995320,0.04,2839.9,2838.8,10.0]
[1749652995504,0.04,2839.9,2838.6,0.2940825]
[1749652995700,0.04,2839.9,2838.8,10.0]
[1749652995933,0.04,2839.9,2839.0,10.0]
[1749652996102,0.04,2839.9,2839.2,10.0]
[1749652996301,0.04,2839.9,2839.4,10.0]
[1749652996619,1.2061,2839.8,2838.8,0.55]
[1749652996940,1.2061,2839.8,2838.6,0.2940825]
[1749652997096,1.2061,2839.8,2838.6,4.4980825]
[1749652997299,1.2859,2839.6,2838.7,10.0]
[1749652997495,1.2859,2839.6,2838.6,0.2940825]
[1749652998198,0.91287597,2839.7,2838.6,0.2940825]
[1749652998199,9.16855973,2839.5,2838.6,0.2940825]
[1749652998538,1.2859,2839.3,2838.6,0.2940825]
[1749653000665,1.2859,2839.3,2838.8,10.0]
[1749653001135,1.2859,2839.3,2838.8,13.5225421]
[1749653001309,0.04,2839.9,2839.0,10.0]
[1749653001310,1.2729,2839.8,2839.0,10.0]
[1749653001514,1.2729,2839.8,2839.2,10.0]
[1749653001710,1.2729,2839.8,2838.9,4.203]
[1749653001964,1.2729,2839.8,2838.8,10.0]
[1749653002135,1.2729,2839.8,2838.6,0.2940825]
[1749653002328,7.92265973,2839.9,2838.6,10.2940825]
[1749653002329,1.1743,2839.6,2838.6,10.2940825]
[1749653002855,1.1743,2839.6,2838.6,0.2940825]
[1749653003368,1.1743,2839.6,2838.4,10.0]
[1749653003531,1.1743,2839.6,2838.6,10.0]
[1749653004131,1.2768,2839.1,2837.1,1.203]
[1749653004332,1.45948,2839.0,2837.6,3.52409658]
[1749653004545,1.45948,2839.0,2837.7,4.49617577]
[1749653004731,1.45948,2839.0,2837.8,0.29416541]
[1749653004937,1.45948,2839.0,2837.9,10.0]
[1749653005148,1.45948,2839.0,2838.0,0.29414468]
[1749653005149,1.2768,2839.0,2838.0,0.29414468]
[1749653005463,1.2768,2839.0,2838.1,4.202]
[1749653006066,1.2768,2839.0,2838.2,10.0]
[1749653006635,1.2768,2839.0,2838.5,0.55]
[1749653006974,0.04,2839.9,2838.9,10.0]
[1749653006975,1.2456,2839.8,2838.9,10.0]
[1749653007192,1.2456,2839.8,2839.1,13.52221678]
[1749653007464,1.2456,2839.8,2839.1,13.52212968]
[1749653007667,1.2456,2839.8,2839.1,10.0]
[1749653007863,1.2456,2839.8,2839.2,0.55]
[1749653008051,1.2456,2839.8,2839.2,1.855]
[1749653008249,1.2456,2839.8,2838.9,7.88265973]
[1749653008454,1.2456,2839.8,2839.3,10.0]
[1749653008661,1.2456,2839.8,2839.0,4.201]
[1749653008831,1.2456,2839.8,2839.1,10.0]
[1749653009734,1.2456,2839.8,2839.3,10.0]
[1749653009970,1.2456,2839.8,2839.5,10.0]
[1749653010632,1.2456,2839.8,2839.5,4.201]
[1749653010827,1.2456,2839.8,2839.6,10.0]
[1749653011960,0.04,2839.9,2839.6,10.0]
[1749653012212,0.04,2839.9,2839.3,10.0]
[1749653012343,0.04,2839.9,2839.6,4.2]
[1749653012541,0.04,2839.9,2839.6,10.0]
[1749653012986,0.04,2839.9,2838.9,0.36038761]
[1749653013279,0.04,2839.9,2839.3,3.52197276]
[1749653013484,0.04,2839.9,2839.6,3.52160395]
[1749653013636,0.04,2839.9,2839.8,3.52137474]
[1749653013841,0.04,2839.9,2839.8,18.27137474]
[1749653014085,0.04,2839.9,2839.8,18.74240702]
[1749653014288,0.04,2839.9,2839.8,15.66205675]
[1749653014588,0.04,2839.9,2839.8,10.0]
[1749653014749,0.04,2839.9,2839.8,14.199]
[1749653015980,0.04,2839.9,2839.8,17.72037474]
[1749653016183,0.04,2839.9,2839.8,18.56433297]
[1749653016365,0.04,2839.9,2839.8,10.29395823]
[1749653016770,0.04,2839.9,2839.8,18.01433297]
[1749653016991,0.04,2839.9,2839.8,18.56433297]
[1749653017284,0.04,2839.9,2839.8,19.03536525]
[1749653017480,0.04,2839.9,2839.8,18.56433297]
[1749653017692,0.04,2839.9,2839.8,33.66477825]
[1749653018198,0.04,2840.9,2840.8,45.33643517]
[1749653018360,0.66666667,2841.6,2841.4,0.55]
[1749653018687,0.66666667,2841.6,2841.5,10.0]